bitfinex/quotes_SOLUSD_20240727
["timestamp","ask_amount","ask_price","bid_price","bid_amount"]
[1722090432021,1.07353351,186.09,186.01,5.376]
[1722090432022,5.3743,186.07,186.01,5.376]
[1722090432225,5.3757,186.02,185.96,5.3773]
[1722090432531,1.07353351,186.01,185.89,3.41736015]
[1722090432733,26.07353351,186.05,185.9,1.07550732]
[1722090432938,6.4932,186.06,185.9,1.07550732]
[1722090433437,21.07353351,186.05,185.89,0.7764278]
[1722090433624,1.07353351,186.04,185.89,1.85182103]
[1722090433937,5.3754,186.03,185.97,5.3771]
[1722090434137,6.4932,186.06,185.9,1.07546259]
[1722090434338,1.07353351,186.05,185.89,0.7764278]
[1722090434530,1.07353351,186.04,185.89,0.7764278]
[1722090434711,1.07353351,186.04,185.94,5.378]
[1722090434712,5.3766,186.0,185.94,5.378]
[1722090434918,1.07353351,185.99,185.89,0.7764278]
[1722090435120,5.3763,186.0,185.93,5.3781]
[1722090435318,1.07353351,186.03,185.89,0.7764278]
[1722090435319,11.8705,185.97,185.91,5.3789]
[1722090435524,1.07353351,185.96,185.93,5.3783]
[1722090435736,6.4932,185.97,185.89,0.7764278]
[1722090436036,6.4932,185.97,185.96,5.3775]
[1722090436234,15.9234,185.98,185.97,5.3772]
[1722090436443,6.4932,186.02,186.01,5.376]
[1722090436618,6.4932,186.02,185.91,25.0]
[1722090436948,6.4932,186.02,185.92,45.0]
[1722090437141,6.4932,186.02,185.98,5.3768]
[1722090437445,6.4932,186.02,186.0,5.3762]
[1722090437635,15.9234,186.03,186.01,5.376]
[1722090438221,5.3739,186.09,186.05,5.3748]
[1722090438222,15.9234,186.09,186.05,5.3748]
[1722090438437,6.4932,186.11,185.98,15.5585]
[1722090438626,6.4932,186.11,185.99,46.07485341]
[1722090438828,15.9234,186.13,186.0,25.34]
[1722090439043,15.9234,186.13,186.01,45.0]
[1722090439044,22.36953351,186.13,186.01,45.0]
[1722090439218,5.3731,186.11,186.05,5.3746]
[1722090439421,1.07353351,186.1,185.98,15.5585]
[1722090439616,5.3744,186.07,186.0,5.3762]
[1722090439928,1.07353351,186.06,185.95,25.0]
[1722090440119,1.07353351,186.06,185.96,45.0]
[1722090440321,1.07353351,186.06,186.0,5.3763]
[1722090440516,12.94133351,186.06,186.0,5.3763]
[1722090440837,6.4932,186.06,186.03,5.3754]
[1722090441534,1.07353351,186.05,185.93,15.5585]
[1722090441914,1.07353351,186.05,185.98,5.3767]
[1722090441915,5.3752,186.04,185.98,5.3767]
[1722090442118,1.07353351,186.03,185.98,5.3767]
[1722090442736,12.94133351,186.06,186.0,5.3763]
[1722090442937,12.94133351,186.06,185.92,7.51804578]
[1722090442938,7.56673351,186.06,185.92,7.51804578]
[1722090443134,12.94143351,186.06,185.99,5.3764]
[1722090443329,5.3752,186.04,185.97,5.3769]
[1722090443542,5.3752,186.04,185.91,25.0]
[1722090443543,1.07353351,186.03,185.91,25.0]
[1722090443747,15.9234,186.02,185.89,16.3349278]
[1722090444126,1.07353351,186.01,185.89,16.3349278]
[1722090444334,5.3764,186.0,185.94,5.3778]
[1722090444627,1.07353351,186.01,185.89,1.85200578]
[1722090444834,1.07353351,186.01,185.89,0.7764278]
[1722090445345,1.07353351,186.01,185.89,25.7764278]
[1722090445526,15.9234,186.02,185.98,5.3768]
[1722090446122,5.3763,186.0,185.95,5.3777]
[1722090446343,6.44983351,186.0,185.95,5.3777]
[1722090446547,1.07353351,186.0,185.95,5.3777]
[1722090447049,15.9234,186.02,185.95,5.3777]
[1722090447221,15.9234,186.02,185.96,5.3773]
[1722090447222,1.07353351,186.01,185.96,5.3773]
[1722090447627,1.07353351,186.01,185.89,0.7764278]
[1722090447628,6.44953351,186.01,185.95,5.3777]
[1722090447828,5.3763,186.0,185.95,5.3777]
[1722090448034,1.07353351,186.01,185.89,0.7764278]
[1722090448242,5.3764,186.0,185.89,0.7764278]
[1722090448639,6.45033351,185.99,185.89,0.7764278]
[1722090448824,1.07353351,186.01,185.93,5.3783]
[1722090449026,21.07353351,186.01,185.94,5.378]
[1722090449362,20.0,186.01,185.95,5.3776]
[1722090449552,20.0,186.01,185.94,5.378]
[1722090449853,5.3766,185.99,185.94,5.378]
[1722090450054,5.3774,185.97,185.89,0.7764278]
[1722090450242,5.3774,185.97,185.91,5.3789]
[1722090450546,12.95333351,185.99,185.92,5.3783]
[1722090450738,6.5029,185.99,185.89,0.7764278]
[1722090450929,1.07353351,185.98,185.94,5.378]
[1722090451125,6.5029,185.99,185.95,5.3776]
[1722090451342,6.5029,185.99,185.89,0.7764278]
[1722090451548,6.5029,185.99,185.98,5.3769]
[1722090451744,15.9234,186.02,185.9,26.07540497]
[1722090451942,15.9234,186.02,185.91,45.0]
[1722090452251,7.57643351,186.04,185.93,40.2837]
[1722090452252,5.3752,186.04,185.93,40.2837]
[1722090452446,5.3752,186.04,185.93,25.0]
[1722090452629,5.3752,186.04,185.98,5.3766]
[1722090453158,1.07353351,186.03,185.96,5.3772]
[1722090453363,6.44923351,186.03,185.97,5.3771]
[1722090453532,5.3759,186.02,185.96,5.3774]
[1722090453732,1.07353351,186.03,185.98,5.3766]
[1722090454166,5.3753,186.04,185.98,5.3766]
[1722090454459,6.44923351,186.03,185.91,45.0]
[1722090454654,1.07353351,186.03,185.91,45.0]
[1722090454832,1.07353351,186.03,185.89,0.7764278]
[1722090454833,5.3763,186.0,185.89,0.7764278]
[1722090455039,1.07353351,185.99,185.89,0.7764278]
[1722090455254,1.07353351,185.99,185.95,5.3777]
[1722090455847,1.07353351,186.0,185.95,5.3777]
[1722090456053,6.44983351,186.0,185.94,5.378]
[1722090456670,6.44983351,186.0,185.95,5.3777]
[1722090456871,5.3763,186.0,185.95,5.3777]
[1722090457384,20.17,186.04,185.89,0.7764278]
[1722090457385,6.45013351,185.99,185.89,0.7764278]
[1722090457568,12.95303351,185.99,185.89,0.7764278]
[1722090458079,6.5029,185.99,185.89,0.7764278]
[1722090458280,1.07353351,185.98,185.89,0.7764278]
[1722090459209,6.45043351,185.98,185.93,5.3782]
[1722090459887,5.3773,185.97,185.89,0.7764278]
[1722090460065,1.07353351,185.96,185.89,0.7764278]
[1722090460260,1.07353351,185.95,185.89,0.7764278]
[1722090460887,6.45133351,185.95,185.89,0.7764278]
[1722090461189,1.07353351,185.94,185.89,0.7764278]
[1722090461393,6.45183351,185.94,185.89,0.7764278]
[1722090461565,1.07353351,185.94,185.89,0.7764278]
[1722090461766,5.378,185.95,185.89,6.1558278]
[1722090462262,1.07353351,185.96,185.89,0.7764278]
[1722090462263,5.3783,185.94,185.89,0.7764278]
[1722090462790,5.3785,185.93,185.89,0.7764278]
[1722090463214,5.378,185.94,185.89,0.7764278]
[1722090463590,5.3781,185.94,185.89,6.1557278]
[1722090463911,20.0,185.97,185.89,6.1557278]
[1722090463912,5.378,185.95,185.89,6.1557278]
[1722090464214,5.378,185.95,185.9,5.3791]
[1722090464712,6.45103351,185.96,185.91,5.3789]
[1722090465092,5.3772,185.97,185.92,5.3785]
[1722090465296,1.07353351,185.96,185.9,5.379]
[1722090465491,1.07353351,185.98,185.89,0.7764278]
[1722090465697,5.3772,185.97,185.92,5.3784]
[1722090466113,6.5029,185.99,185.89,0.7764278]
[1722090466288,6.5029,185.99,185.85,9.31967908]
[1722090466289,5.3772,185.97,185.91,5.3787]
[1722090466787,5.3775,185.96,185.91,5.3787]
[1722090467785,5.3779,185.95,185.9,5.3791]
[1722090467999,1.07353351,185.98,185.91,5.3789]
[1722090468000,5.3775,185.96,185.91,5.3789]
[1722090468207,1.07353351,185.98,185.89,5.8350388]
[1722090468208,5.3778,185.95,185.89,5.8350388]
[1722090468406,5.3772,185.97,185.91,5.3788]
[1722090468626,5.3772,185.97,185.92,5.3786]
[1722090469134,5.3771,185.98,185.92,5.3786]
[1722090469300,5.3774,185.97,185.89,0.4557388]
[1722090469712,5.3775,185.96,185.89,0.4557388]
[1722090469999,6.5029,185.99,185.89,0.4557388]
[1722090470626,11.8795,185.99,185.93,5.3783]
[1722090471131,5.377,185.98,185.93,5.3783]
[1722090472309,6.5029,185.99,185.89,1.53137913]
[1722090472503,6.5029,185.99,185.94,5.378]
[1722090472504,11.8796,185.99,185.94,5.378]
[1722090472724,11.8796,185.99,185.93,5.3783]
[1722090473029,6.5029,185.99,185.94,5.378]
[1722090473405,6.5029,185.99,185.92,5.3784]
[1722090473625,5.3769,185.98,185.92,5.3784]
[1722090474105,15.0752,186.0,185.95,5.3777]
[1722090474301,20.4515,186.0,185.95,5.3777]
[1722090474500,5.3766,185.99,185.89,0.4557388]
[1722090474700,5.3766,185.99,185.94,5.378]
[1722090474922,5.3769,185.98,185.92,5.3786]
[1722090475225,5.3769,185.98,185.9,12.52]
[1722090475226,12.52,185.97,185.9,12.52]
[1722090475734,12.52,185.97,185.91,5.3789]
[1722090475926,12.52,185.95,185.89,0.4557388]
[1722090476102,5.3781,185.94,185.89,0.4557388]
[1722090476439,17.8992,185.9,185.89,0.4557388]
[1722090476731,5.3792,185.9,185.89,0.4557388]
[1722090477233,6.45273351,185.9,185.89,0.4557388]
[1722090478241,39.90073351,185.9,185.89,0.4557388]
[1722090478447,13.4508,185.87,185.78,0.7720348]
[1722090478654,5.3821,185.8,185.78,0.7720348]
[1722090479359,25.3824,185.79,185.78,0.7720348]
[1722090479646,25.3824,185.79,185.78,0.2720348]
[1722090480837,25.06,185.83,185.78,0.2720348]
[1722090481043,5.3819,185.81,185.78,0.2720348]
[1722090481249,5.3808,185.85,185.79,5.3824]
[1722090481420,5.381,185.84,185.78,5.6546348]
[1722090481621,1.07353351,185.83,185.78,0.2720348]
[1722090481842,6.45363351,185.87,185.81,5.3818]
[1722090482051,5.3805,185.86,185.78,0.2720348]
[1722090482225,5.3824,185.79,185.78,0.2720348]
[1722090482425,26.13353351,185.85,185.78,0.2720348]
[1722090482619,1.07353351,185.85,185.8,5.382]
[1722090482828,7.27303351,185.89,185.78,0.2720348]
[1722090483346,5.382,185.81,185.78,0.2720348]
[1722090483523,5.3824,185.79,185.78,0.2720348]
[1722090483722,38.5118,185.85,185.78,0.2720348]
[1722090483723,1.07353351,185.84,185.78,0.2720348]
[1722090483940,5.3821,185.8,185.78,0.2720348]
[1722090484152,26.13353351,185.85,185.78,0.2720348]
[1722090484153,5.3824,185.79,185.78,0.2720348]
[1722090484319,5.382,185.81,185.78,0.2720348]
[1722090484523,5.3821,185.8,185.78,0.2720348]
[1722090485153,1.07353351,185.87,185.78,0.2720348]
[1722090485329,1.07353351,185.86,185.78,0.2720348]
[1722090485528,1.07353351,185.85,185.78,0.2720348]
[1722090485751,5.3822,185.8,185.78,0.2720348]
[1722090485950,5.3824,185.79,185.78,0.2720348]
[1722090488329,5.3819,185.81,185.78,0.2720348]
[1722090488656,5.3805,185.86,185.78,0.2720348]
[1722090488947,1.07353351,185.87,185.78,0.2720348]
[1722090489459,5.3815,185.82,185.78,0.2720348]
[1722090489629,1.07353351,185.81,185.78,0.2720348]
[1722090489832,26.7615,185.79,185.78,0.2720348]
[1722090490059,26.7615,185.79,185.68,5.3855]
[1722090490060,5.3838,185.74,185.68,5.3855]
[1722090490351,13.4571,185.78,185.63,6.665]
[1722090490522,5.3838,185.74,185.63,6.665]
[1722090490941,5.3841,185.73,185.67,5.3858]
[1722090491248,5.3849,185.71,185.64,5.3866]
[1722090491454,13.459,185.75,185.63,6.165]
[1722090491630,5.3856,185.68,185.62,5.387]
[1722090491945,1.07353351,185.74,185.59,1.84933213]
[1722090492244,5.3847,185.71,185.66,5.3861]
[1722090492437,21.07353351,185.75,185.59,26.90919193]
[1722090492639,5.3853,185.69,185.63,5.387]
[1722090492842,5.3856,185.68,185.63,5.387]
[1722090493051,5.3855,185.69,185.63,5.3869]
[1722090493355,5.3855,185.69,185.59,0.7720348]
[1722090493356,1.07353351,185.68,185.59,0.7720348]
[1722090493537,1.07353351,185.67,185.59,0.7720348]
[1722090493863,5.387,185.63,185.59,0.7720348]
[1722090494045,14.53833351,185.67,185.59,0.7720348]
[1722090494359,1.07353351,185.67,185.59,0.7720348]
[1722090494753,5.3873,185.62,185.59,0.7720348]
[1722090494951,1.07353351,185.62,185.59,0.7720348]
[1722090495158,20.0,185.67,185.59,0.7720348]
[1722090495159,1.07353351,185.66,185.59,0.7720348]
[1722090495661,5.3874,185.62,185.59,0.7720348]
[1722090496170,19.8344,185.68,185.59,0.7720348]
[1722090496171,6.3704,185.68,185.59,0.7720348]
[1722090496348,5.3859,185.67,185.61,5.3876]
[1722090496541,5.3859,185.67,185.59,0.7720348]
[1722090496542,5.3862,185.66,185.59,0.7720348]
[1722090496858,6.3704,185.68,185.61,5.3876]
[1722090497163,5.387,185.63,185.59,0.7720348]
[1722090497567,5.3868,185.64,185.59,0.7720348]
[1722090497868,6.3704,185.68,185.59,0.7720348]
[1722090497869,5.3879,185.6,185.59,0.7720348]
[1722090498442,13.4663,185.65,185.59,0.7720348]
[1722090498662,21.07353351,185.64,185.59,0.7720348]
[1722090499271,5.3879,185.6,185.59,0.7720348]
[1722090500562,20.0,185.64,185.59,0.7720348]
[1722090500765,5.3865,185.65,185.59,0.7720348]
[1722090500946,21.3791,185.68,185.61,5.3874]
[1722090501155,5.3873,185.62,185.59,0.7720348]
[1722090501340,5.3877,185.61,185.59,0.7720348]
[1722090501753,1.07353351,185.65,185.59,0.7720348]
[1722090501969,1.07353351,185.64,185.59,0.7720348]
[1722090502275,5.387,185.64,185.59,0.7720348]
[1722090502450,1.07353351,185.64,185.59,0.7720348]
[1722090502655,5.3878,185.61,185.59,0.7720348]
[1722090502975,5.3873,185.62,185.59,0.7720348]
[1722090503180,5.387,185.63,185.59,0.7720348]
[1722090503462,1.07353351,185.62,185.59,0.7720348]
[1722090503671,5.387,185.63,185.59,0.7720348]
[1722090503844,5.3866,185.65,185.59,0.7720348]
[1722090504160,6.46033351,185.64,185.59,0.7720348]
[1722090504343,5.3852,185.7,185.64,5.3866]
[1722090504673,1.07353351,185.72,185.64,5.3866]
[1722090504856,1.07353351,185.72,185.59,0.7720348]
[1722090504857,5.3856,185.68,185.63,5.387]
[1722090505048,5.3856,185.68,185.62,5.3873]
[1722090505448,1.07353351,185.72,185.59,0.7720348]
[1722090505449,5.3864,185.65,185.59,0.7720348]
[1722090505649,5.3874,185.62,185.59,0.7720348]
[1722090505860,54.6404,185.73,185.59,0.7720348]
[1722090505861,1.07353351,185.72,185.59,0.7720348]
[1722090506171,6.3704,185.73,185.59,0.7720348]
[1722090506472,7.44393351,185.73,185.59,0.7720348]
[1722090506641,46.924,185.71,185.59,0.7720348]
[1722090506846,5.3873,185.62,185.59,0.7720348]
[1722090507253,5.3879,185.6,185.59,0.7720348]
[1722090508343,1.07353351,185.64,185.59,0.7720348]
[1722090508546,1.07353351,185.67,185.59,0.7720348]
[1722090508749,5.3878,185.61,185.59,0.7720348]
[1722090509054,6.46143351,185.6,185.59,0.7720348]
[1722090509268,26.46143351,185.6,185.59,0.7720348]
[1722090509574,26.46143351,185.6,185.59,3.48e-05]
[1722090509751,26.63143351,185.6,185.59,3.48e-05]
[1722090510150,26.63143351,185.6,185.43,1.07800474]
[1722090510151,21.07353351,185.6,185.45,15.8009]
[1722090510473,5.3907,185.51,185.45,5.3922]
[1722090510649,33.4715,185.58,185.41,6.4794]
[1722090510650,1.07353351,185.57,185.41,6.4794]
[1722090510851,5.3906,185.51,185.41,6.4794]
[1722090511152,5.3909,185.5,185.41,6.4794]
[1722090511360,5.391,185.5,185.41,6.4794]
[1722090511553,14.54823351,185.54,185.41,6.4794]
[1722090511554,13.4765,185.51,185.41,6.4794]
[1722090511868,1.07353351,185.5,185.41,6.4794]
[1722090512069,1.07353351,185.49,185.4,0.7720348]
[1722090512251,26.5611,185.53,185.4,0.7720348]
[1722090512252,5.3934,185.41,185.4,0.7720348]
[1722090513069,1.07353351,185.45,185.4,0.7720348]
[1722090513365,1.07353351,185.49,185.43,5.3927]
[1722090513568,6.46443351,185.5,185.44,5.3924]
[1722090513867,1.07353351,185.52,185.4,0.7720348]
[1722090514066,1.07353351,185.55,185.4,0.7720348]
[1722090514271,1.07353351,185.55,185.41,1.07826891]
[1722090514454,13.02303351,185.59,185.52,5.3901]
[1722090514660,6.46183351,185.59,185.41,1.07826891]
[1722090514968,5.387,185.64,185.56,5.3889]
[1722090515173,1.07353351,185.64,185.49,6.4794]
[1722090515362,20.0,185.71,185.6,5.3878]
[1722090515572,34.8311,185.73,185.5,65.34]
[1722090515573,54.8311,185.73,185.63,5.3869]
[1722090515746,1.07353351,185.71,185.64,5.3867]
[1722090515948,15.7021,185.74,185.53,31.9809]
[1722090516151,1.07353351,185.73,185.54,66.24718688]
[1722090516353,1.07353351,185.72,185.55,1.07718598]
[1722090516856,1.07353351,185.73,185.55,1.07718598]
[1722090517165,1.07353351,185.72,185.64,5.3867]
[1722090517372,5.385,185.7,185.64,5.3867]
[1722090517576,5.385,185.7,185.54,45.17]
[1722090517577,5.60707358,185.76,185.56,28.27]
[1722090517779,5.3831,185.77,185.7,5.3849]
[1722090517981,5.3833,185.76,185.57,81.52]
[1722090518153,5.3836,185.75,185.58,1.07699974]
[1722090518354,1.07353351,185.74,185.58,1.07699974]
[1722090518554,6.45773351,185.73,185.66,5.3861]
[1722090518756,1.07353351,185.73,185.58,1.07699974]
[1722090518967,5.384,185.74,185.59,0.17]
[1722090519302,1.07353351,185.76,185.68,5.3855]
[1722090519486,5.3839,185.74,185.66,5.3859]
[1722090519659,5.3842,185.73,185.66,5.3859]
[1722090519855,28.27,185.77,185.58,1.07703687]
[1722090519856,6.45793351,185.72,185.58,1.07703687]
[1722090520055,5.3842,185.73,185.67,5.3858]
[1722090520375,1.07353351,185.76,185.58,1.07703687]
[1722090520577,21.07353351,185.76,185.57,45.17]
[1722090520879,20.0,185.75,185.57,45.0]
[1722090521182,5.3853,185.69,185.62,5.3873]
[1722090521369,1.07353351,185.74,185.62,5.3873]
[1722090521370,5.3856,185.68,185.62,5.3873]
[1722090521572,49.34353351,185.73,185.54,1.07732196]
[1722090521772,20.0,185.72,185.54,1.07732196]
[1722090521961,20.0,185.72,185.42,41.596406]
[1722090521962,20.0,185.72,185.66,5.386]
[1722090522280,20.0,185.72,185.55,1.07716796]
[1722090522281,21.07353351,185.73,185.67,5.3858]
[1722090522485,20.0,185.73,185.68,5.3855]
[1722090522688,1.07353351,185.76,185.63,5.3868]
[1722090522689,5.3849,185.71,185.63,5.3868]
[1722090522865,1.07353351,185.76,185.58,1.07707709]
[1722090523070,1.07353351,185.76,185.59,0.17]
[1722090523389,5.3841,185.73,185.66,5.3859]
[1722090523590,1.07353351,185.79,185.61,1.07707442]
[1722090523801,1.07353351,185.79,185.72,5.3844]
[1722090524088,1.07353351,185.79,185.63,1.07679357]
[1722090524303,1.07353351,185.79,185.63,46.07679357]
[1722090524467,5.3834,185.76,185.7,5.3849]
[1722090524792,5.3835,185.75,185.69,5.3852]
[1722090524997,49.1569,185.81,185.72,5.3844]
[1722090524998,13.4548,185.81,185.72,5.3844]
[1722090525198,1.07353351,185.81,185.63,46.07679357]
[1722090525370,28.27,185.84,185.74,5.3836]
[1722090525371,5.3821,185.8,185.74,5.3836]
[1722090525569,5.3818,185.81,185.75,5.3834]
[1722090525980,5.3814,185.83,185.76,5.3831]
[1722090526293,5.3814,185.83,185.68,1.07647968]
[1722090526492,43.9721,185.88,185.68,1.07647968]
[1722090526493,1.07353351,185.88,185.69,0.34]
[1722090526683,5.3804,185.86,185.79,5.3824]
[1722090526891,1.07353351,185.91,185.69,0.34]
[1722090526892,13.4483,185.9,185.71,1.07631214]
[1722090527065,5.3803,185.87,185.81,5.3818]
[1722090527266,1.07353351,185.91,185.83,5.3811]
[1722090527267,5.3797,185.89,185.83,5.3811]
[1722090527574,1.07353351,185.92,185.81,5.3816]
[1722090527892,41.7157,185.94,185.74,1.07610106]
[1722090527893,41.7157,185.94,185.75,6.5]
[1722090528104,13.4457,185.94,185.76,46.41593275]
[1722090528281,13.4457,185.94,185.77,1.07595835]
[1722090528477,13.4457,185.94,185.78,0.17]
[1722090528694,13.4457,185.94,185.79,1.07593445]
[1722090528893,13.4457,185.94,185.8,1.07592368]
[1722090529096,5.3791,185.91,185.85,5.3805]
[1722090529285,15.4424,185.96,185.8,1.07592368]
[1722090529478,5.3783,185.94,185.87,5.38]
[1722090529802,1.07353351,185.96,185.86,5.3801]
[1722090530004,1.07353351,185.95,185.8,1.07592368]
[1722090530171,1.07353351,185.95,185.85,5.3805]
[1722090530172,14.51843351,185.95,185.85,5.3805]
[1722090530374,5.3788,185.92,185.85,5.3805]
[1722090530578,14.51843351,185.95,185.8,1.07592368]
[1722090531083,5.3791,185.91,185.84,5.3809]
[1722090531284,5.3791,185.91,185.85,5.3806]
[1722090532014,1.07353351,185.94,185.8,1.0759355]
[1722090532204,1.07353351,185.94,185.83,5.3809]
[1722090532205,5.3795,185.89,185.83,5.3809]
[1722090532581,5.3792,185.9,185.83,5.3809]
[1722090532780,5.3795,185.89,185.82,5.3812]
[1722090533001,5.3795,185.89,185.8,1.0759355]
[1722090533310,5.3792,185.9,185.84,5.3806]
[1722090533492,5.3789,185.91,185.85,5.3806]
[1722090534199,5.3786,185.92,185.86,5.3803]
[1722090534780,5.3786,185.92,185.87,5.38]
[1722090534981,5.378,185.94,185.88,5.3797]
[1722090535297,13.4423,185.98,185.81,1.07576735]
[1722090535494,5.3789,185.91,185.85,5.3806]
[1722090536089,5.3786,185.92,185.86,5.3803]
[1722090536286,1.07353351,185.97,185.82,1.41577445]
[1722090536491,5.3781,185.94,185.83,1.07565218]
[1722090536689,14.51583351,185.98,185.82,1.07569495]
[1722090536985,14.51583351,185.98,185.83,1.2457692]
[1722090537191,6.0692,185.99,185.83,1.2457692]
[1722090537497,5.3781,185.94,185.88,5.3797]
[1722090537698,5.3786,185.92,185.83,0.17]
[1722090537904,5.379,185.91,185.83,5.381]
[1722090538109,5.379,185.91,185.82,1.4156149]
[1722090538110,1.07353351,185.95,185.79,1.07578502]
[1722090538308,5.3794,185.9,185.8,1.07593258]
[1722090538499,13.4458,185.94,185.8,1.07593258]
[1722090538812,5.3799,185.88,185.8,1.07593258]
[1722090539021,5.3792,185.9,185.83,5.381]
[1722090539220,20.0,185.93,185.86,5.3803]
[1722090539517,5.378,185.94,185.87,5.3799]
[1722090539924,5.378,185.94,185.83,1.07579225]
[1722090539925,5.3778,185.95,185.88,5.3797]
[1722090540088,25.3781,185.94,185.87,5.38]
[1722090540284,25.3781,185.94,185.83,1.07579225]
[1722090540285,20.0,185.94,185.83,1.07579225]
[1722090540616,14.52003351,185.93,185.79,1.07569635]
[1722090540921,20.0,185.92,185.8,1.075928]
[1722090541098,13.4436,185.97,185.87,5.38]
[1722090541414,5.3783,185.94,185.87,5.38]
[1722090541609,20.0,185.93,185.88,5.3797]
[1722090541905,5.3778,185.95,185.88,5.3797]
[1722090542106,5.3778,185.95,185.78,44.45]
[1722090542107,5.3775,185.96,185.9,5.3792]
[1722090542314,13.4408,186.01,185.91,6.45446012]
[1722090542495,5.3762,186.01,185.94,5.3778]
[1722090542696,13.4378,186.05,185.92,1.07547122]
[1722090542697,13.4378,186.05,185.92,1.07537818]
[1722090543008,1.07353351,186.04,185.91,0.17]
[1722090543215,1.07353351,186.05,185.94,5.378]
[1722090543396,5.376,186.01,185.91,1.07529792]
[1722090543597,5.376,186.02,185.91,1.07529792]
[1722090543805,5.3761,186.01,185.94,5.378]
[1722090544007,14.2086348,186.06,185.95,1.07532653]
[1722090544204,14.2086348,186.06,185.9,1.24521566]
[1722090544391,14.2086348,186.06,185.91,0.17]
[1722090544592,5.376,186.01,185.94,5.3778]
[1722090544918,5.376,186.01,185.94,5.378]
[1722090545211,5.376,186.02,185.95,5.3777]
[1722090545415,5.3754,186.04,185.91,1.24521807]
[1722090545595,1.84556831,186.06,185.92,0.17]
[1722090545800,5.3769,185.98,185.9,50.5489]
[1722090545990,5.3769,185.98,185.91,5.3787]
[1722090546190,20.0,186.02,185.87,1.07537705]
[1722090546385,14.51163351,186.04,185.89,1.07549024]
[1722090546386,13.4381,186.04,185.89,1.07549024]
[1722090546620,1.07353351,186.04,185.94,5.378]
[1722090546819,5.3763,186.0,185.9,1.07540218]
[1722090547017,5.376,186.02,185.94,5.3779]
[1722090547193,5.3759,186.02,185.94,5.3778]
[1722090547393,5.3761,186.01,185.94,5.3778]
[1722090547614,13.4373,186.05,185.92,5.3784]
[1722090547795,5.3774,185.97,185.9,1.07536164]
[1722090548002,5.3766,185.99,185.92,5.3786]
[1722090548212,5.3763,186.0,185.93,5.3783]
[1722090548519,5.3755,186.03,185.96,5.3774]
[1722090548819,20.0,186.04,185.9,1.07537445]
[1722090549027,25.3752,186.04,185.91,0.34]
[1722090549197,5.3754,186.03,185.92,1.07518357]
[1722090549394,5.3757,186.02,185.96,5.3774]
[1722090549617,5.3757,186.02,185.93,1.24518987]
[1722090549798,5.3754,186.03,185.96,5.3774]
[1722090549996,5.3763,186.0,185.93,0.17]
[1722090550196,5.3763,186.0,185.93,5.3783]
[1722090550395,5.3763,186.0,185.9,1.07537599]
[1722090550618,5.376,186.01,185.9,1.07537599]
[1722090550823,5.3757,186.02,185.95,5.3777]
[1722090550996,5.376,186.01,185.94,5.378]
[1722090551195,21.07353351,186.04,185.9,1.07537599]
[1722090551196,5.3764,186.0,185.9,1.07537599]
[1722090551413,21.07353351,186.04,185.95,5.3775]
[1722090551414,5.376,186.02,185.95,5.3775]
[1722090552003,5.3757,186.02,185.96,5.3772]
[1722090552698,5.3757,186.02,185.95,5.3777]
[1722090553095,5.3761,186.01,185.95,5.3777]
[1722090553804,5.3761,186.01,185.94,5.378]
[1722090554004,5.3757,186.02,185.95,5.3776]
[1722090554424,20.0,186.04,185.96,5.3774]
[1722090554721,21.07353351,186.05,185.95,5.3777]
[1722090554909,1.07353351,186.03,185.89,1.07535226]
[1722090555110,1.07353351,186.03,185.91,5.3788]
[1722090555430,0.7720348,186.06,185.9,0.17]
[1722090555431,5.3762,186.01,185.95,5.3777]
[1722090555805,20.0,186.04,185.95,5.3777]
[1722090556018,1.07353351,186.03,185.92,45.0]
[1722090556196,5.3769,185.98,185.92,45.0]
[1722090556399,1.07353351,186.03,185.92,45.0]
[1722090556400,5.3765,186.0,185.93,5.3783]
[1722090556627,20.0,186.04,185.92,45.0]
[1722090556628,21.07353351,186.04,185.92,45.0]